Workbook

Sheet ChartData
A1: This Excel workbook is protected.
A2: You can change only the offsets in the outlined-in-blue blue cells below, and green cells to the right.
A3: The data (the twelve offsets and the title) are used in the "Panoply" sheet to calculate all the cents and beat rates.
A4: The four mini-graphs change in real time as you modify the offsets.
A5: They have larger versions with data on the two chart pages following.
C9: Chart data | E9: Try these: | T9: Enter your own experiments below:
A11: Title of chart: | C11: Dr. Herbert Anton Kellner (Wohltemperirt/Bach, 1978) | E11: 1/4 Syntonic Meantone | F11: Barnes "Bach" (1979) - 1/6 PC | G11: Bremmer's EBVT2 | H11: Coleman 11 (Modern Well, 1999) | I11: Dr. Herbert Anton Kellner (Wohltemperirt/Bach, 1978) | J11: EBVT III | K11: Equal Beating Koval (EBK) (2002) | L11: Francesco Antonio Vallotti (Well, 1781) | M11: Roshan Kakiya's Well Temperament | N11: Johann Philipp Kirnberger (Equal-Beating Well, 1771) | O11: Koval Variable Well 1.5 | P11: Stanhope (Improved Kirnberger Equal-Beating Well, 1806) | Q11: Wendell Synchronous ET Equivalent, 2002 | R11: Werckmeister III (Well, 1691) | S11: Roshan Kakiya's Practical Just Intonation (Alternative Tritone) | T11: Actually you can enter your own data here in the green cells.
A12: C | C12: 8.099 | E12: 10.2647146 | F12: 5.87 | G12: 3.8 | H12: 3 | I12: 8.099 | J12: 3.797910239 | K12: 3 | L12: 5.865 | M12: 0 | N12: 4.85475 | O12: 1.5 | P12: 11.09139 | Q12: 2.74 | R12: 11.73 | S12: 0
A13: C# | C13: -1.676 | E13: -13.68628614 | F13: 0 | G13: -1.1 | H13: 0 | I13: -1.676 | J13: -1.285144808 | K13: 0 | L13: 0 | M13: 1.96 | N13: -4.92026 | O13: -0.2 | P13: 4.69441 | Q13: -0.78 | R13: 1.96 | S13: -1.05
A14: D | C14: 2.8 | E14: 3.421571534 | F14: 1.96 | G14: 0.5 | H14: 0 | I14: 2.8 | J14: 0.8568730433 | K14: 0.5 | L14: 1.955 | M14: 0 | N14: 8.76475 | O14: 0.5 | P14: 4.8475 | Q14: 2.35 | R14: 3.91 | S14: 3.91
A15: D# | C15: 2.2 | E15: 20.5294292 | F15: 3.91 | G15: 2.8 | H15: 0 | I15: 2.2 | J15: 1.590359051 | K15: 0.6 | L15: 3.91 | M15: 1.96 | N15: -1.01026 | O15: 0.9 | P15: 8.60441 | Q15: 1.17 | R15: 5.87 | S15: -2.49
A16: E | C16: -2.843 | E16: -3.421571534 | F16: -1.96 | G16: 0.6 | H16: -3 | I16: -2.843 | J16: -0.4062451138 | K16: -1.5 | L16: -1.955 | M16: 0 | N16: -8.83154 | O16: -0.6 | P16: -2.59489 | Q16: 1.96 | R16: 1.96 | S16: 4.44
A17: F | C17: 6.1 | E17: 13.68628614 | F17: 7.82 | G17: 1.8 | H17: 4 | I17: 6.1 | J17: 1.842651831 | K17: 2.5 | L17: 7.82 | M17: 1.96 | N17: 2.89975 | O17: 1.4 | P17: 9.13639 | Q17: 0.78 | R17: 9.78 | S17: -1.96
A18: F# | C18: -3.631 | E18: -10.2647146 | F18: -1.96 | G18: -2.1 | H18: -2 | I18: -3.631 | J18: -0.2847757141 | K18: -1.5 | L18: -1.955 | M18: 0 | N18: -4.92154 | O18: -0.8 | P18: 2.73941 | Q18: 1.56 | R18: 0 | S18: 3
A19: G | C19: 5.5 | E19: 6.843143068 | F19: 3.91 | G19: 2.2 | H19: 2 | I19: 5.5 | J19: 3.110732612 | K19: 1.8 | L19: 3.91 | M19: 1.96 | N19: 6.80975 | O19: 1 | P19: 13.04639 | Q19: 0.39 | R19: 7.82 | S19: 1.96
A20: G# | C20: 0.3 | E20: -17.10785767 | F20: 1.96 | G20: 0.8 | H20: 0 | I20: 0.3 | J20: 0.6699038965 | K20: 1.2 | L20: 1.955 | M20: 0 | N20: -2.96526 | O20: 0.4 | P20: 6.64941 | Q20: 1.17 | R20: 3.91 | S20: 0.91
A21: A | C21: 0 | E21: 0 | F21: 0 | G21: 0 | H21: -1 | I21: 0 | J21: 0 | K21: 0 | L21: 0 | M21: 1.96 | N21: 0 | O21: 0 | P21: 0 | Q21: 0 | R21: 0 | S21: 5.87
A22: A# | C22: 4.2 | E22: 17.10785767 | F22: 5.87 | G22: 2.4 | H22: 2 | I22: 4.2 | J22: 2.855295385 | K22: 1.7 | L22: 5.865 | M22: 0 | N22: 0.94475 | O22: 1.25 | P22: 7.18139 | Q22: 3.13 | R22: 7.82 | S22: -3.91
A23: B | C23: -0.888 | E23: -6.843143068 | F23: 0 | G23: -1.1 | H23: -4 | I23: -0.888 | J23: -0.0271997926 | K23: -1.5 | L23: -3.91 | M23: 1.96 | N23: -6.87654 | O23: -0.75 | P23: -0.63989 | Q23: -0.39 | R23: 3.91 | S23: 1.05
A26: This Excel workbook designed by Jason Kanter and used to create charts on rollingball.com
K33: Smallest M3 | L33: =ROUND(MIN(F38:F49),1) -> 2.7
K34: Largest M3 | L34: =ROUND(MAX(F38:F49),1) -> 21.5
A35: Below: Extracting chart data from Panoply.
A37: Major Triads | C37: SourceNotes | D37: Tonic | E37: Offset (cents) | F37: M3 ¢ | G37: M3 bps | H37: m3 ¢ | I37: m3 bps | J37: 5th ¢ | K37: 5th bps
A38: CEG | C38: C3-E3-G3 | D38: =LEFT(A38,1) -> C | E38: =cee -> 8.099 | F38: =Panoply!G64 -> 2.744286135 | G38: =Panoply!H64 -> 1.042484858 | H38: =Panoply!J60 -> -7.298287001 | I38: =Panoply!K60 -> -4.1531884 | J38: =Panoply!M64 -> -4.554000865 | K38: =Panoply!N64 -> -1.035784446
A39: GBD | C39: G3-B3-D4 | D39: =LEFT(A39,1) -> G | E39: =gee -> 5.5 | F39: =Panoply!G57 -> 7.298286135 | G39: =Panoply!H57 -> 4.153187907 | H39: =Panoply!J53 -> -11.953287 | I39: =Panoply!K53 -> -10.18957262 | J39: =Panoply!M57 -> -4.655000865 | K39: =Panoply!N57 -> -1.583916305
A40: DF#A | C40: D3-F#3-A3 | D40: D | E40: =dee -> 2.8 | F40: =Panoply!G62 -> 7.255286135 | G40: =Panoply!H62 -> 3.08818536 | H40: =Panoply!J58 -> -12.010287 | I40: =Panoply!K58 -> -7.65768675 | J40: =Panoply!M62 -> -4.755000865 | K40: =Panoply!N62 -> -1.210163484
A41: AC#E | C41: A3-C#4-E4 | D41: A | E41: =aaa -> 0 | F41: =Panoply!G55 -> 12.01028614 | G41: =Panoply!H55 -> 7.657686196 | H41: =Panoply!J51 -> -16.808287 | I41: =Panoply!K51 -> -16.05306451 | J41: =Panoply!M55 -> -4.798000865 | K41: =Panoply!N55 -> -1.826614085
A42: EG#B | C42: E3-G#3-B3 | D42: E | E42: =eee -> -2.843 | F42: =Panoply!G60 -> 16.82928614 | G42: =Panoply!H60 -> 8.036608878 | H42: =Panoply!J56 -> -16.829287 | I42: =Panoply!K56 -> -12.05491393 | J42: =Panoply!M60 -> -8.653872185e-07 | K42: =Panoply!N60 -> -2.467494937e-07
A43: BD#F# | C43: B3-D#4-F#4 | D43: B | E43: =bee -> -0.888 | F43: =Panoply!G53 -> 16.77428614 | G43: =Panoply!H53 -> 12.01532533 | H43: =Panoply!J49 -> -21.472287 | I43: =Panoply!K49 -> -23.03949037 | J43: =Panoply!M53 -> -4.698000865 | K43: =Panoply!N53 -> -2.006600951
A44: F#A#C# | C44: F#3-A#3-C#4 | D44: =LEFT(A44,2) -> F# | E44: =fsharp -> -3.631 | F44: =Panoply!G58 -> 21.51728614 | G44: =Panoply!H58 -> 11.54403727 | H44: =Panoply!J54 -> -21.517287 | I44: =Panoply!K54 -> -17.3160566 | J44: =Panoply!M58 -> -8.653866419e-07 | K44: =Panoply!N58 -> -2.768407512e-07
A45: C#FG# | C45: C#3-F3-G#3 | D45: =LEFT(A45,2) -> C# | E45: =csharp -> -1.676 | F45: =Panoply!G63 -> 21.46228614 | G45: =Panoply!H63 -> 8.63575984 | H45: =Panoply!J59 -> -21.441287 | I45: =Panoply!K59 -> -12.94104398 | J45: =Panoply!M63 -> 0.02099913461 | K45: =Panoply!N63 -> 0.005038312253
A46: AbCEb | C46: Ab3-C4-Eb4 | D46: =LEFT(A46,2) -> Ab | E46: =aflat -> 0.3 | F46: =Panoply!G56 -> 21.48528614 | G46: =Panoply!H56 -> 12.9677651 | H46: =Panoply!J52 -> -21.540287 | I46: =Panoply!K52 -> -19.50113341 | J46: =Panoply!M56 -> -0.05500086539 | K46: =Panoply!N56 -> -0.01979430233
A47: EbGBb | C47: Eb3-G3-Bb3 | D47: =LEFT(A47,2) -> Eb | E47: =eflat -> 2.2 | F47: =Panoply!G61 -> 16.98628614 | G47: =Panoply!H61 -> 7.678997813 | H47: =Panoply!J57 -> -16.941287 | I47: =Panoply!K57 -> -11.48813161 | J47: =Panoply!M61 -> 0.04499913461 | K47: =Panoply!N61 -> 0.01214604392
A48: BbDF | C48: Bb3-D4-F4 | D48: =LEFT(A48,2) -> Bb | E48: =bflat -> 4.2 | F48: =Panoply!G54 -> 12.28628614 | G48: =Panoply!H54 -> 8.320299 | H48: =Panoply!J50 -> -12.341287 | I48: =Panoply!K50 -> -12.53611965 | J48: =Panoply!M54 -> -0.05500086539 | K48: =Panoply!N54 -> -0.02226846147
A49: FAC | C49: F3-A3-C4 | D49: F | E49: =eff -> 6.1 | F49: =Panoply!G59 -> 7.586286135 | G49: =Panoply!H59 -> 3.84773286 | H49: =Panoply!J55 -> -7.542287001 | I49: =Panoply!K55 -> -5.738197886 | J49: =Panoply!M59 -> 0.04399913461 | K49: =Panoply!N59 -> 0.01336056142
A50: CEG | C50: C4-E4-G4 | D50: C | E50: =cee -> 8.099 | F50: =Panoply!G52 -> 2.744286135 | G50: =Panoply!H52 -> 2.084969715 | H50: =Panoply!J48 -> -7.298287001 | I50: =Panoply!K48 -> -8.306376801 | J50: =Panoply!M52 -> -4.554000865 | K50: =Panoply!N52 -> -2.071568891
A53: Minor Triads | C53: SourceNotes | D53: Tonic | E53: Offset (cents) | F53: M3 ¢ | G53: M3 bps | H53: m3 ¢ | I53: m3 bps | J53: 5th ¢ | K53: 5th bps
A54: CEbG | C54: C3-Eb3-G3 | D54: =D38 -> C | E54: =cee -> 8.099 | F54: =F47 -> 16.98628614 | G54: 7.678997813 | H54: =Panoply!J64 -> -21.540287 | I54: =Panoply!K64 -> -9.750566704 | J54: =J38 -> -4.554000865 | K54: -1.035784446
A55: GBbD | C55: G3-Bb3-D4 | D55: =D39 -> G | E55: =gee -> 5.5 | F55: 12.28628614 | G55: 8.320299 | H55: =H47 -> -16.941287 | I55: =I47 -> -11.48813161 | J55: -4.655000865 | K55: -1.583916305
A56: DFA | C56: D3-F3-A3 | D56: D | E56: =dee -> 2.8 | F56: 7.586286135 | G56: 3.84773286 | H56: =H48 -> -12.341287 | I56: =I48/2 -> -6.268059827 | J56: -4.755000865 | K56: -1.210163484
A57: ACE | C57: A3-C4-E4 | D57: A | E57: =aaa -> 0 | F57: 2.744286135 | G57: 2.084969715 | H57: -7.542287001 | I57: -5.738197886 | J57: -4.798000865 | K57: -1.826614085
A58: EGB | C58: E3-G3-B3 | D58: E | E58: =eee -> -2.843 | F58: =F39 -> 7.298286135 | G58: =G39 -> 4.153187907 | H58: -7.298287001 | I58: =I50/2 -> -4.1531884 | J58: -8.653872185e-07 | K58: -2.467494937e-07
A59: BDF# | C59: B3-D4-F#4 | D59: B | E59: =bee -> -0.888 | F59: =F40 -> 7.255286135 | G59: =G40*2 -> 6.176370721 | H59: =H39 -> -11.953287 | I59: =I39 -> -10.18957262 | J59: -4.698000865 | K59: -2.006600951
A60: F#AC# | C60: F#3-A3-C#4 | D60: F# | E60: =fsharp -> -3.631 | F60: 12.01028614 | G60: 7.657686196 | H60: =H40 -> -12.010287 | I60: -7.65768675 | J60: -8.653866419e-07 | K60: -2.768407512e-07
A61: C#EG# | C61: C#3-E3-G#3 | D61: C# | E61: =csharp -> -1.676 | F61: 16.82928614 | G61: 8.036608878 | H61: -16.808287 | I61: =I41/2 -> -8.026532254 | J61: 0.02099913461 | K61: 0.005038312253
A62: AbBEb | C62: Ab3-B3-Eb4 | D62: Ab | E62: =aflat -> 0.3 | F62: 16.77428614 | G62: 12.01532533 | H62: -16.829287 | I62: -12.05491393 | J62: -0.05500086539 | K62: -0.01979430233
A63: EbGbBb | C63: Eb3-Gb3-Bb3 | D63: Eb | E63: =eflat -> 2.2 | F63: 21.51728614 | G63: 11.54403727 | H63: -21.472287 | I63: =I43/2 -> -11.51974519 | J63: 0.04499913461 | K63: 0.01214604392
A64: BbDbF | C64: Bb3-Db4-F4 | D64: Bb | E64: =bflat -> 4.2 | F64: 21.46228614 | G64: =G45*2 -> 17.27151968 | H64: -21.517287 | I64: -17.3160566 | J64: -0.05500086539 | K64: -0.02226846147
A65: FAbC | C65: F3-Ab3-C4 | D65: F | E65: =eff -> 6.1 | F65: 21.48528614 | G65: 12.9677651 | H65: -21.441287 | I65: -12.94104398 | J65: 0.04399913461 | K65: 0.01336056142
A66: CEbG | C66: C4-Eb4-G4 | D66: C | E66: =cee -> 8.099 | F66: 16.98628614 | G66: =G47*2 -> 15.35799563 | H66: -21.540287 | I66: -19.50113341 | J66: -4.554000865 | K66: -2.071568891
A70: Rearranging chart data for easier linking.
A71: MAJOR | D71: C Maj | F71: G Maj | H71: D Maj | J71: A Maj | L71: E Maj | N71: B Maj | P71: F# Maj | R71: C# Maj | T71: Ab Maj | V71: Eb Maj | X71: Bb Maj | Z71: F Maj | AB71: C Maj
A72: M3 ¢ | D72: =F38 -> 2.744286135 | F72: =F39 -> 7.298286135 | H72: =F40 -> 7.255286135 | J72: =F41 -> 12.01028614 | L72: =F42 -> 16.82928614 | N72: =F43 -> 16.77428614 | P72: =F44 -> 21.51728614 | R72: =F45 -> 21.46228614 | T72: =F46 -> 21.48528614 | V72: =F47 -> 16.98628614 | X72: =F48 -> 12.28628614 | Z72: =F49 -> 7.586286135 | AB72: =F50 -> 2.744286135
A73: m3 ¢ | D73: =H38 -> -7.298287001 | F73: =H39 -> -11.953287 | H73: =H40 -> -12.010287 | J73: =H41 -> -16.808287 | L73: =H42 -> -16.829287 | N73: =H43 -> -21.472287 | P73: =H44 -> -21.517287 | R73: =H45 -> -21.441287 | T73: =H46 -> -21.540287 | V73: =H47 -> -16.941287 | X73: =H48 -> -12.341287 | Z73: =H49 -> -7.542287001 | AB73: =H50 -> -7.298287001
A74: 5th ¢ | D74: =J38 -> -4.554000865 | F74: =J39 -> -4.655000865 | H74: =J40 -> -4.755000865 | J74: =J41 -> -4.798000865 | L74: =J42 -> -8.653872185e-07 | N74: =J43 -> -4.698000865 | P74: =J44 -> -8.653866419e-07 | R74: =J45 -> 0.02099913461 | T74: =J46 -> -0.05500086539 | V74: =J47 -> 0.04499913461 | X74: =J48 -> -0.05500086539 | Z74: =J49 -> 0.04399913461 | AB74: =J50 -> -4.554000865
A75: M3 bps | D75: =G38 -> 1.042484858 | F75: =G39 -> 4.153187907 | H75: =G40 -> 3.08818536 | J75: =G41 -> 7.657686196 | L75: =G42 -> 8.036608878 | N75: =G43 -> 12.01532533 | P75: =G44 -> 11.54403727 | R75: =G45 -> 8.63575984 | T75: =G46 -> 12.9677651 | V75: =G47 -> 7.678997813 | X75: =G48 -> 8.320299 | Z75: =G49 -> 3.84773286 | AB75: =G50 -> 2.084969715
A76: m3 bps | D76: =I38 -> -4.1531884 | F76: =I39 -> -10.18957262 | H76: =I40 -> -7.65768675 | J76: =I41 -> -16.05306451 | L76: =I42 -> -12.05491393 | N76: =I43 -> -23.03949037 | P76: =I44 -> -17.3160566 | R76: =I45 -> -12.94104398 | T76: =I46 -> -19.50113341 | V76: =I47 -> -11.48813161 | X76: =I48 -> -12.53611965 | Z76: =I49 -> -5.738197886 | AB76: =I50 -> -8.306376801
A77: 5th bps | D77: =K38 -> -1.035784446 | F77: =K39 -> -1.583916305 | H77: =K40 -> -1.210163484 | J77: =K41 -> -1.826614085 | L77: =K42 -> -2.467494937e-07 | N77: =K43 -> -2.006600951 | P77: =K44 -> -2.768407512e-07 | R77: =K45 -> 0.005038312253 | T77: =K46 -> -0.01979430233 | V77: =K47 -> 0.01214604392 | X77: =K48 -> -0.02226846147 | Z77: =K49 -> 0.01336056142 | AB77: =K50 -> -2.071568891

Sheet WellChart
A2: MAJOR TRIADS | D2: Triads arranged around the circle of fifths. Vertical scale of +/- 25 cents - adequate for all but meantone temperaments. Red = M3. Blue = Fifth. Green = m3. | AE2: minor triads | AH2: Columns represents cents away from just. Numbers represent beats per second in region C3-C4.
B3: Pythagorean Major 3rd | AF3: Pythagorean Major 3rd
B4: E.T. Major 3rd | AF4: E.T. Major 3rd
B5: Just | AF5: Just
B6: E.T. Fifth | AF6: E.T. Fifth
B7: E.T. minor 3rd | AF7: E.T. minor 3rd
B8: Pythagorean minor 3rd | AF8: Pythagorean minor 3rd
C10: Offset from ET ➤ | D10: =cee -> 8.099 | F10: =gee -> 5.5 | H10: =dee -> 2.8 | J10: =aaa -> 0 | L10: =eee -> -2.843 | N10: =bee -> -0.888 | P10: =fsharp -> -3.631 | R10: =csharp -> -1.676 | T10: =aflat -> 0.3 | V10: =eflat -> 2.2 | X10: =bflat -> 4.2 | Z10: =eff -> 6.1 | AB10: =cee -> 8.099 | AG10: Offset from ET ➤ | AH10: =D10 -> 8.099 | AJ10: =F10 -> 5.5 | AL10: =H10 -> 2.8 | AN10: =J10 -> 0 | AP10: =L10 -> -2.843 | AR10: =N10 -> -0.888 | AT10: =P10 -> -3.631 | AV10: =R10 -> -1.676 | AX10: =T10 -> 0.3 | AZ10: =V10 -> 2.2 | BB10: =X10 -> 4.2 | BD10: =Z10 -> 6.1 | BF10: =AB10 -> 8.099
C11: Offset to equalize tension➤ | D11: =cee-equalized -> 8.099 | F11: =gee-equalized -> 5.5 | H11: =dee-equalized -> 2.8 | J11: =aaa-equalized -> 0 | L11: =eee-equalized -> -2.843 | N11: =bee-equalized -> -0.888 | P11: =fsharp-equalized -> -3.631 | R11: =csharp-equalized -> -1.676 | T11: =aflat-equalized -> 0.3 | V11: =eflat-equalized -> 2.2 | X11: =bflat-equalized -> 4.2 | Z11: =eff-equalized -> 6.1 | AB11: =cee-equalized -> 8.099 | AG11: =C11 -> Offset to equalize tension➤ | AH11: =D11 -> 8.099 | AJ11: =F11 -> 5.5 | AL11: =H11 -> 2.8 | AN11: =J11 -> 0 | AP11: =L11 -> -2.843 | AR11: =N11 -> -0.888 | AT11: =P11 -> -3.631 | AV11: =R11 -> -1.676 | AX11: =T11 -> 0.3 | AZ11: =V11 -> 2.2 | BB11: =X11 -> 4.2 | BD11: =Z11 -> 6.1 | BF11: =AB11 -> 8.099
A12: MAJOR | D12: C3 | F12: G | H12: D | J12: A | L12: E | N12: B | P12: F# | R12: C# | T12: Ab | V12: Eb | X12: Bb | Z12: F | AB12: C4 | AE12: MINOR | AH12: C3 | AJ12: G | AL12: D | AN12: A | AP12: E | AR12: B | AT12: F# | AV12: C# | AX12: Ab | AZ12: Eb | BB12: Bb | BD12: F | BF12: C4
B13: M3 ¢ | D13: =ChartData!D72 -> 2.744286135 | F13: =ChartData!F72 -> 7.298286135 | H13: =ChartData!H72 -> 7.255286135 | J13: =ChartData!J72 -> 12.01028614 | L13: =ChartData!L72 -> 16.82928614 | N13: =ChartData!N72 -> 16.77428614 | P13: =ChartData!P72 -> 21.51728614 | R13: =ChartData!R72 -> 21.46228614 | T13: =ChartData!T72 -> 21.48528614 | V13: =ChartData!V72 -> 16.98628614 | X13: =ChartData!X72 -> 12.28628614 | Z13: =ChartData!Z72 -> 7.586286135 | AB13: =ChartData!AB72 -> 2.744286135 | AF13: =B13 -> M3 ¢ | AH13: =V13 -> 16.98628614 | AJ13: =X13 -> 12.28628614 | AL13: =Z13 -> 7.586286135 | AN13: =AB13 -> 2.744286135 | AP13: =F13 -> 7.298286135 | AR13: =H13 -> 7.255286135 | AT13: =J13 -> 12.01028614 | AV13: =L13 -> 16.82928614 | AX13: =N13 -> 16.77428614 | AZ13: =P13 -> 21.51728614 | BB13: =R13 -> 21.46228614 | BD13: =T13 -> 21.48528614 | BF13: =V13 -> 16.98628614
B14: m3 ¢ | D14: =ChartData!D73 -> -7.298287001 | F14: =ChartData!F73 -> -11.953287 | H14: =ChartData!H73 -> -12.010287 | J14: =ChartData!J73 -> -16.808287 | L14: =ChartData!L73 -> -16.829287 | N14: =ChartData!N73 -> -21.472287 | P14: =ChartData!P73 -> -21.517287 | R14: =ChartData!R73 -> -21.441287 | T14: =ChartData!T73 -> -21.540287 | V14: =ChartData!V73 -> -16.941287 | X14: =ChartData!X73 -> -12.341287 | Z14: =ChartData!Z73 -> -7.542287001 | AB14: =ChartData!AB73 -> -7.298287001 | AF14: m3 ¢ | AH14: =T14 -> -21.540287 | AJ14: =V14 -> -16.941287 | AL14: =X14 -> -12.341287 | AN14: =Z14 -> -7.542287001 | AP14: =AB14 -> -7.298287001 | AR14: =F14 -> -11.953287 | AT14: =H14 -> -12.010287 | AV14: =J14 -> -16.808287 | AX14: =L14 -> -16.829287 | AZ14: =N14 -> -21.472287 | BB14: =P14 -> -21.517287 | BD14: =R14 -> -21.441287 | BF14: =T14 -> -21.540287
B15: 5th ¢ | D15: =ChartData!D74 -> -4.554000865 | F15: =ChartData!F74 -> -4.655000865 | H15: =ChartData!H74 -> -4.755000865 | J15: =ChartData!J74 -> -4.798000865 | L15: =ChartData!L74 -> -8.653872185e-07 | N15: =ChartData!N74 -> -4.698000865 | P15: =ChartData!P74 -> -8.653866419e-07 | R15: =ChartData!R74 -> 0.02099913461 | T15: =ChartData!T74 -> -0.05500086539 | V15: =ChartData!V74 -> 0.04499913461 | X15: =ChartData!X74 -> -0.05500086539 | Z15: =ChartData!Z74 -> 0.04399913461 | AB15: =ChartData!AB74 -> -4.554000865 | AF15: 5th ¢ | AH15: =D15 -> -4.554000865 | AJ15: =F15 -> -4.655000865 | AL15: =H15 -> -4.755000865 | AN15: =J15 -> -4.798000865 | AP15: =L15 -> -8.653872185e-07 | AR15: =N15 -> -4.698000865 | AT15: =P15 -> -8.653866419e-07 | AV15: =R15 -> 0.02099913461 | AX15: =T15 -> -0.05500086539 | AZ15: =V15 -> 0.04499913461 | BB15: =X15 -> -0.05500086539 | BD15: =Z15 -> 0.04399913461 | BF15: =AB15 -> -4.554000865
B16: M3 bps | D16: =ChartData!D75 -> 1.042484858 | F16: =ChartData!F75 -> 4.153187907 | H16: =ChartData!H75 -> 3.08818536 | J16: =ChartData!J75 -> 7.657686196 | L16: =ChartData!L75 -> 8.036608878 | N16: =ChartData!N75 -> 12.01532533 | P16: =ChartData!P75 -> 11.54403727 | R16: =ChartData!R75 -> 8.63575984 | T16: =ChartData!T75 -> 12.9677651 | V16: =ChartData!V75 -> 7.678997813 | X16: =ChartData!X75 -> 8.320299 | Z16: =ChartData!Z75 -> 3.84773286 | AB16: =ChartData!AB75 -> 2.084969715 | AF16: M3 bps | AH16: =V16 -> 7.678997813 | AJ16: =X16 -> 8.320299 | AL16: =Z16 -> 3.84773286 | AN16: =AB16 -> 2.084969715 | AP16: =F16 -> 4.153187907 | AR16: =H16*2 -> 6.176370721 | AT16: =J16 -> 7.657686196 | AV16: =L16 -> 8.036608878 | AX16: =N16 -> 12.01532533 | AZ16: =P16 -> 11.54403727 | BB16: =R16*2 -> 17.27151968 | BD16: =T16 -> 12.9677651 | BF16: =V16*2 -> 15.35799563
B17: m3 bps | D17: =ChartData!D76 -> -4.1531884 | F17: =ChartData!F76 -> -10.18957262 | H17: =ChartData!H76 -> -7.65768675 | J17: =ChartData!J76 -> -16.05306451 | L17: =ChartData!L76 -> -12.05491393 | N17: =ChartData!N76 -> -23.03949037 | P17: =ChartData!P76 -> -17.3160566 | R17: =ChartData!R76 -> -12.94104398 | T17: =ChartData!T76 -> -19.50113341 | V17: =ChartData!V76 -> -11.48813161 | X17: =ChartData!X76 -> -12.53611965 | Z17: =ChartData!Z76 -> -5.738197886 | AB17: =ChartData!AB76 -> -8.306376801 | AF17: m3 bps | AH17: =T17/2 -> -9.750566704 | AJ17: =V17 -> -11.48813161 | AL17: =X17/2 -> -6.268059827 | AN17: =Z17 -> -5.738197886 | AP17: =AB17/2 -> -4.1531884 | AR17: =F17 -> -10.18957262 | AT17: =H17 -> -7.65768675 | AV17: =J17/2 -> -8.026532254 | AX17: =L17 -> -12.05491393 | AZ17: =N17/2 -> -11.51974519 | BB17: =P17 -> -17.3160566 | BD17: =R17 -> -12.94104398 | BF17: =T17 -> -19.50113341
A18: not shown on chart: | B18: 5th bps | D18: =ChartData!D77 -> -1.035784446 | F18: =ChartData!F77 -> -1.583916305 | H18: =ChartData!H77 -> -1.210163484 | J18: =ChartData!J77 -> -1.826614085 | L18: =ChartData!L77 -> -2.467494937e-07 | N18: =ChartData!N77 -> -2.006600951 | P18: =ChartData!P77 -> -2.768407512e-07 | R18: =ChartData!R77 -> 0.005038312253 | T18: =ChartData!T77 -> -0.01979430233 | V18: =ChartData!V77 -> 0.01214604392 | X18: =ChartData!X77 -> -0.02226846147 | Z18: =ChartData!Z77 -> 0.01336056142 | AB18: =ChartData!AB77 -> -2.071568891 | AE18: not shown on chart: | AF18: 5th bps | AH18: =D18 -> -1.035784446 | AJ18: =F18 -> -1.583916305 | AL18: =H18 -> -1.210163484 | AN18: =J18 -> -1.826614085 | AP18: =L18 -> -2.467494937e-07 | AR18: =N18 -> -2.006600951 | AT18: =P18 -> -2.768407512e-07 | AV18: =R18 -> 0.005038312253 | AX18: =T18 -> -0.01979430233 | AZ18: =V18 -> 0.01214604392 | BB18: =X18 -> -0.02226846147 | BD18: =Z18 -> 0.01336056142 | BF18: =AB18 -> -2.071568891

Sheet BigMajorChart (hidden)
B3: Major Triads | D3: cents | E3: =commentary -> 0
C4: Pythagorean Major 3rd | Y4: =source -> 0
C5: E.T. Major 3rd
B6: ="M3 ¢ Range: "&ChartData!L33&" to "&ChartData!L34 -> M3 ¢ Range: 2.7 to 21.5 | C6: Just
C9: Pythagorean minor 3rd
D11: Offset tonic from ET --> | E11: =cee -> 8.099 | G11: =gee -> 5.5 | I11: =dee -> 2.8 | K11: =aaa -> 0 | M11: =eee -> -2.843 | O11: =bee -> -0.888 | Q11: =fsharp -> -3.631 | S11: =csharp -> -1.676 | U11: =aflat -> 0.3 | W11: =eflat -> 2.2 | Y11: =bflat -> 4.2 | AA11: =eff -> 6.1 | AC11: =cee -> 8.099
E12: C Maj | G12: G Maj | I12: D Maj | K12: A Maj | M12: E Maj | O12: B Maj | Q12: F# Maj | S12: C# Maj | U12: Ab Maj | W12: Eb Maj | Y12: Bb Maj | AA12: F Maj | AC12: C Maj
C13: M3 ¢ | E13: =ChartData!D72 -> 2.744286135 | G13: =ChartData!F72 -> 7.298286135 | I13: =ChartData!H72 -> 7.255286135 | K13: =ChartData!J72 -> 12.01028614 | M13: =ChartData!L72 -> 16.82928614 | O13: =ChartData!N72 -> 16.77428614 | Q13: =ChartData!P72 -> 21.51728614 | S13: =ChartData!R72 -> 21.46228614 | U13: =ChartData!T72 -> 21.48528614 | W13: =ChartData!V72 -> 16.98628614 | Y13: =ChartData!X72 -> 12.28628614 | AA13: =ChartData!Z72 -> 7.586286135 | AC13: =ChartData!AB72 -> 2.744286135
C14: m3 ¢ | E14: =ChartData!D73 -> -7.298287001 | G14: =ChartData!F73 -> -11.953287 | I14: =ChartData!H73 -> -12.010287 | K14: =ChartData!J73 -> -16.808287 | M14: =ChartData!L73 -> -16.829287 | O14: =ChartData!N73 -> -21.472287 | Q14: =ChartData!P73 -> -21.517287 | S14: =ChartData!R73 -> -21.441287 | U14: =ChartData!T73 -> -21.540287 | W14: =ChartData!V73 -> -16.941287 | Y14: =ChartData!X73 -> -12.341287 | AA14: =ChartData!Z73 -> -7.542287001 | AC14: =ChartData!AB73 -> -7.298287001
C15: 5th ¢ | E15: =ChartData!D74 -> -4.554000865 | G15: =ChartData!F74 -> -4.655000865 | I15: =ChartData!H74 -> -4.755000865 | K15: =ChartData!J74 -> -4.798000865 | M15: =ChartData!L74 -> -8.653872185e-07 | O15: =ChartData!N74 -> -4.698000865 | Q15: =ChartData!P74 -> -8.653866419e-07 | S15: =ChartData!R74 -> 0.02099913461 | U15: =ChartData!T74 -> -0.05500086539 | W15: =ChartData!V74 -> 0.04499913461 | Y15: =ChartData!X74 -> -0.05500086539 | AA15: =ChartData!Z74 -> 0.04399913461 | AC15: =ChartData!AB74 -> -4.554000865
C16: M3 bps | E16: =ChartData!D75 -> 1.042484858 | G16: =ChartData!F75 -> 4.153187907 | I16: =ChartData!H75 -> 3.08818536 | K16: =ChartData!J75 -> 7.657686196 | M16: =ChartData!L75 -> 8.036608878 | O16: =ChartData!N75 -> 12.01532533 | Q16: =ChartData!P75 -> 11.54403727 | S16: =ChartData!R75 -> 8.63575984 | U16: =ChartData!T75 -> 12.9677651 | W16: =ChartData!V75 -> 7.678997813 | Y16: =ChartData!X75 -> 8.320299 | AA16: =ChartData!Z75 -> 3.84773286 | AC16: =ChartData!AB75 -> 2.084969715
C17: m3 bps | E17: =ChartData!D76 -> -4.1531884 | G17: =ChartData!F76 -> -10.18957262 | I17: =ChartData!H76 -> -7.65768675 | K17: =ChartData!J76 -> -16.05306451 | M17: =ChartData!L76 -> -12.05491393 | O17: =ChartData!N76 -> -23.03949037 | Q17: =ChartData!P76 -> -17.3160566 | S17: =ChartData!R76 -> -12.94104398 | U17: =ChartData!T76 -> -19.50113341 | W17: =ChartData!V76 -> -11.48813161 | Y17: =ChartData!X76 -> -12.53611965 | AA17: =ChartData!Z76 -> -5.738197886 | AC17: =ChartData!AB76 -> -8.306376801
C18: 5th bps | E18: =ChartData!D77 -> -1.035784446 | G18: =ChartData!F77 -> -1.583916305 | I18: =ChartData!H77 -> -1.210163484 | K18: =ChartData!J77 -> -1.826614085 | M18: =ChartData!L77 -> -2.467494937e-07 | O18: =ChartData!N77 -> -2.006600951 | Q18: =ChartData!P77 -> -2.768407512e-07 | S18: =ChartData!R77 -> 0.005038312253 | U18: =ChartData!T77 -> -0.01979430233 | W18: =ChartData!V77 -> 0.01214604392 | Y18: =ChartData!X77 -> -0.02226846147 | AA18: =ChartData!Z77 -> 0.01336056142 | AC18: =ChartData!AB77 -> -2.071568891
Q32: 21.50700189 | AC32: Pythagorean M3 and m3
Q33: 21.50700189 | AC33: ET third

Sheet MeanChart
A2: MAJOR TRIADS | D2: Triads arranged around the circle of fifths. Vertical scale of +50 to -55 cents - good for displaying meantone temperaments. Red = M3. Blue = Fifth. Green = m3. | AE2: minor triads | AH2: Columns represents cents away from just. Numbers represent beats per second in region C3-C4.
B3: Pythagorean Major 3rd | AF3: Pythagorean Major 3rd
B4: E.T. Major 3rd | AF4: E.T. Major 3rd
B5: Just | AF5: Just
B7: E.T. Fifth | AF7: E.T. Fifth
B8: E.T. minor 3rd | AF8: E.T. minor 3rd
B9: Pythagorean minor 3rd | AF9: Pythagorean minor 3rd
C10: Offset from ET ➤ | D10: =cee -> 8.099 | F10: =gee -> 5.5 | H10: =dee -> 2.8 | J10: =aaa -> 0 | L10: =eee -> -2.843 | N10: =bee -> -0.888 | P10: =fsharp -> -3.631 | R10: =csharp -> -1.676 | T10: =aflat -> 0.3 | V10: =eflat -> 2.2 | X10: =bflat -> 4.2 | Z10: =eff -> 6.1 | AB10: =cee -> 8.099 | AG10: Offset from ET ➤ | AH10: =D10 -> 8.099 | AJ10: =F10 -> 5.5 | AL10: =H10 -> 2.8 | AN10: =J10 -> 0 | AP10: =L10 -> -2.843 | AR10: =N10 -> -0.888 | AT10: =P10 -> -3.631 | AV10: =R10 -> -1.676 | AX10: =T10 -> 0.3 | AZ10: =V10 -> 2.2 | BB10: =X10 -> 4.2 | BD10: =Z10 -> 6.1 | BF10: =AB10 -> 8.099
C11: Offset to equalize tension➤ | D11: =cee-equalizedM -> 8.099 | F11: =gee-equalizedM -> 5.5 | H11: =dee-equalizedM -> 2.8 | J11: =aaa-equalizedM -> 0 | L11: =eee-equalizedM -> -2.843 | N11: =bee-equalizedM -> -0.888 | P11: =fsharp-equalizedM -> -3.631 | R11: =csharp-equalizedM -> -1.676 | T11: =aflat-equalizedM -> 0.3 | V11: =eflat-equalizedM -> 2.2 | X11: =bflat-equalizedM -> 4.2 | Z11: =eff-equalizedM -> 6.1 | AB11: =cee-equalizedM -> 8.099 | AG11: =C11 -> Offset to equalize tension➤ | AH11: =D11 -> 8.099 | AJ11: 5.5 | AL11: 2.8 | AN11: 0 | AP11: -2.843 | AR11: -0.888 | AT11: -3.631 | AV11: -1.676 | AX11: 0.3 | AZ11: 2.2 | BB11: 4.2 | BD11: 6.1 | BF11: 8.099
D12: C Maj | F12: G Maj | H12: D Maj | J12: A Maj | L12: E Maj | N12: B Maj | P12: F♯ Maj | R12: C♯ Maj | T12: A♭ Maj | V12: E♭ Maj | X12: B♭ Maj | Z12: F Maj | AB12: C Maj | AH12: C min | AJ12: G min | AL12: D min | AN12: A min | AP12: E min | AR12: B min | AT12: F♯ min | AV12: C♯ min | AX12: G♯ min | AZ12: D♯ min | BB12: A♯ min | BD12: F min | BF12: C min
B13: M3 ¢ | D13: =ChartData!D72 -> 2.744286135 | F13: =ChartData!F72 -> 7.298286135 | H13: =ChartData!H72 -> 7.255286135 | J13: =ChartData!J72 -> 12.01028614 | L13: =ChartData!L72 -> 16.82928614 | N13: =ChartData!N72 -> 16.77428614 | P13: =ChartData!P72 -> 21.51728614 | R13: =ChartData!R72 -> 21.46228614 | T13: =ChartData!T72 -> 21.48528614 | V13: =ChartData!V72 -> 16.98628614 | X13: =ChartData!X72 -> 12.28628614 | Z13: =ChartData!Z72 -> 7.586286135 | AB13: =ChartData!AB72 -> 2.744286135 | AF13: =B13 -> M3 ¢ | AH13: =V13 -> 16.98628614 | AJ13: =X13 -> 12.28628614 | AL13: =Z13 -> 7.586286135 | AN13: =AB13 -> 2.744286135 | AP13: =F13 -> 7.298286135 | AR13: =H13 -> 7.255286135 | AT13: =J13 -> 12.01028614 | AV13: =L13 -> 16.82928614 | AX13: =N13 -> 16.77428614 | AZ13: =P13 -> 21.51728614 | BB13: =R13 -> 21.46228614 | BD13: =T13 -> 21.48528614 | BF13: =V13 -> 16.98628614
B14: m3 ¢ | D14: =ChartData!D73 -> -7.298287001 | F14: =ChartData!F73 -> -11.953287 | H14: =ChartData!H73 -> -12.010287 | J14: =ChartData!J73 -> -16.808287 | L14: =ChartData!L73 -> -16.829287 | N14: =ChartData!N73 -> -21.472287 | P14: =ChartData!P73 -> -21.517287 | R14: =ChartData!R73 -> -21.441287 | T14: =ChartData!T73 -> -21.540287 | V14: =ChartData!V73 -> -16.941287 | X14: =ChartData!X73 -> -12.341287 | Z14: =ChartData!Z73 -> -7.542287001 | AB14: =ChartData!AB73 -> -7.298287001 | AF14: m3 ¢ | AH14: =T14 -> -21.540287 | AJ14: =V14 -> -16.941287 | AL14: =X14 -> -12.341287 | AN14: =Z14 -> -7.542287001 | AP14: =AB14 -> -7.298287001 | AR14: =F14 -> -11.953287 | AT14: =H14 -> -12.010287 | AV14: =J14 -> -16.808287 | AX14: =L14 -> -16.829287 | AZ14: =N14 -> -21.472287 | BB14: =P14 -> -21.517287 | BD14: =R14 -> -21.441287 | BF14: =T14 -> -21.540287
B15: 5th ¢ | D15: =ChartData!D74 -> -4.554000865 | F15: =ChartData!F74 -> -4.655000865 | H15: =ChartData!H74 -> -4.755000865 | J15: =ChartData!J74 -> -4.798000865 | L15: =ChartData!L74 -> -8.653872185e-07 | N15: =ChartData!N74 -> -4.698000865 | P15: =ChartData!P74 -> -8.653866419e-07 | R15: =ChartData!R74 -> 0.02099913461 | T15: =ChartData!T74 -> -0.05500086539 | V15: =ChartData!V74 -> 0.04499913461 | X15: =ChartData!X74 -> -0.05500086539 | Z15: =ChartData!Z74 -> 0.04399913461 | AB15: =ChartData!AB74 -> -4.554000865 | AF15: 5th ¢ | AH15: =D15 -> -4.554000865 | AJ15: =F15 -> -4.655000865 | AL15: =H15 -> -4.755000865 | AN15: =J15 -> -4.798000865 | AP15: =L15 -> -8.653872185e-07 | AR15: =N15 -> -4.698000865 | AT15: =P15 -> -8.653866419e-07 | AV15: =R15 -> 0.02099913461 | AX15: =T15 -> -0.05500086539 | AZ15: =V15 -> 0.04499913461 | BB15: =X15 -> -0.05500086539 | BD15: =Z15 -> 0.04399913461 | BF15: =AB15 -> -4.554000865
B16: M3 bps | D16: =ChartData!D75 -> 1.042484858 | F16: =ChartData!F75 -> 4.153187907 | H16: =ChartData!H75 -> 3.08818536 | J16: =ChartData!J75 -> 7.657686196 | L16: =ChartData!L75 -> 8.036608878 | N16: =ChartData!N75 -> 12.01532533 | P16: =ChartData!P75 -> 11.54403727 | R16: =ChartData!R75 -> 8.63575984 | T16: =ChartData!T75 -> 12.9677651 | V16: =ChartData!V75 -> 7.678997813 | X16: =ChartData!X75 -> 8.320299 | Z16: =ChartData!Z75 -> 3.84773286 | AB16: =ChartData!AB75 -> 2.084969715 | AF16: M3 bps | AH16: =V16 -> 7.678997813 | AJ16: =X16 -> 8.320299 | AL16: =Z16 -> 3.84773286 | AN16: =AB16 -> 2.084969715 | AP16: =F16 -> 4.153187907 | AR16: =H16*2 -> 6.176370721 | AT16: =J16 -> 7.657686196 | AV16: =L16 -> 8.036608878 | AX16: =N16 -> 12.01532533 | AZ16: =P16 -> 11.54403727 | BB16: =R16*2 -> 17.27151968 | BD16: =T16 -> 12.9677651 | BF16: =V16*2 -> 15.35799563
B17: m3 bps | D17: =ChartData!D76 -> -4.1531884 | F17: =ChartData!F76 -> -10.18957262 | H17: =ChartData!H76 -> -7.65768675 | J17: =ChartData!J76 -> -16.05306451 | L17: =ChartData!L76 -> -12.05491393 | N17: =ChartData!N76 -> -23.03949037 | P17: =ChartData!P76 -> -17.3160566 | R17: =ChartData!R76 -> -12.94104398 | T17: =ChartData!T76 -> -19.50113341 | V17: =ChartData!V76 -> -11.48813161 | X17: =ChartData!X76 -> -12.53611965 | Z17: =ChartData!Z76 -> -5.738197886 | AB17: =ChartData!AB76 -> -8.306376801 | AF17: m3 bps | AH17: =T17/2 -> -9.750566704 | AJ17: =V17 -> -11.48813161 | AL17: =X17/2 -> -6.268059827 | AN17: =Z17 -> -5.738197886 | AP17: =AB17/2 -> -4.1531884 | AR17: =F17 -> -10.18957262 | AT17: =H17 -> -7.65768675 | AV17: =J17/2 -> -8.026532254 | AX17: =L17 -> -12.05491393 | AZ17: =N17/2 -> -11.51974519 | BB17: =P17 -> -17.3160566 | BD17: =R17 -> -12.94104398 | BF17: =T17 -> -19.50113341
A18: not shown on chart: | B18: 5th bps | D18: =ChartData!D77 -> -1.035784446 | F18: =ChartData!F77 -> -1.583916305 | H18: =ChartData!H77 -> -1.210163484 | J18: =ChartData!J77 -> -1.826614085 | L18: =ChartData!L77 -> -2.467494937e-07 | N18: =ChartData!N77 -> -2.006600951 | P18: =ChartData!P77 -> -2.768407512e-07 | R18: =ChartData!R77 -> 0.005038312253 | T18: =ChartData!T77 -> -0.01979430233 | V18: =ChartData!V77 -> 0.01214604392 | X18: =ChartData!X77 -> -0.02226846147 | Z18: =ChartData!Z77 -> 0.01336056142 | AB18: =ChartData!AB77 -> -2.071568891 | AE18: not shown on chart: | AF18: 5th bps | AH18: =D18 -> -1.035784446 | AJ18: =F18 -> -1.583916305 | AL18: =H18 -> -1.210163484 | AN18: =J18 -> -1.826614085 | AP18: =L18 -> -2.467494937e-07 | AR18: =N18 -> -2.006600951 | AT18: =P18 -> -2.768407512e-07 | AV18: =R18 -> 0.005038312253 | AX18: =T18 -> -0.01979430233 | AZ18: =V18 -> 0.01214604392 | BB18: =X18 -> -0.02226846147 | BD18: =Z18 -> 0.01336056142 | BF18: =AB18 -> -2.071568891

Sheet Panoply
A1: This sheet does not include any inharmonicity calculations. | C1: We build an "ET" scale up and down from A4=440 | D1: The ET will be modified by the twelve offsets in the ChartData sheet | E1: The corrected fundamental is calculated by '=fundamental* (cent^offset) | F1: The Just M3 is the basis for assessing the sizes of the M3 | G1: Size in cents of the M3 on this note | H1: Beats of the 5th partial of the lower vs the 4th partial of the upper | I1: The Just m3 is the basis for assessing the sizes of the m3 | J1: Size in cents of the m3 on this note | K1: Beats of the 6th partial of the lower vs the 5th partial of the upper | L1: The Just 5th is the basis for assessing the sizes of the fifths | M1: Size in cents of the 5th on this note | N1: Beats of the 3rd partial of the lower vs the 2nd partial of the upper | O1: The Just 4th is the basis for assessing the sizes of the fourths | P1: Size in cents of the 4th on this note | Q1: Beats of the 4th partial of the lower vs the 3rd partial of the upper | R1: The Just M6 is the basis for assessing the sizes of the M6 | S1: Size in cents of the M6 on this note | T1: Beats of the 5th partial of the lower vs the 3rd partial of the upper
E2: name: cfund | F2: =(5/4)*cfund | I2: =(6/5)*cfund | L2: =(3/2)*cfund | O2: =(4/3)*cfund | R2: =(5/3)*cfund
A3: Note | C3: Fundamental (ET) | D3: offsets | E3: Corrected fund | F3: Just M3 | G3: M3c | H3: M3b | I3: Just m3 | J3: m3c | K3: m3b | L3: Just 5th | M3: 5c | N3: 5b | O3: Just 4th | P3: 4c | Q3: 4b | R3: Just M6 | S3: M6c | T3: M6b
A4: C | B4: 8 | C4: =C5*semitone -> 4186.009045 | D4: =cee -> 8.099 | E4: =fundamental*(cent^offset) -> 4205.637767
A5: B | B5: 7 | C5: 3951.06641 | D5: =bee -> -0.888 | E5: 3949.040314
A6: A# | B6: 7 | C6: 3729.310092 | D6: =asharp -> 4.2 | E6: 3738.368438
A7: A | B7: 7 | C7: 3520 | D7: =aaa -> 0 | E7: 3520 | I7: =(6/5)*E7 -> 4224 | J7: =1200*(LOG($E4/I7)/LOG(octave)) -> -7.542287001 | K7: =5*$E4-6*$E7 -> -91.81116618
A8: G# | B8: 7 | C8: 3322.437581 | D8: =gsharp -> 0.3 | E8: 3323.013365 | F8: =E8*1.25 -> 4153.766706 | G8: =1200*(LOG($E4/F8)/LOG(octave)) -> 21.48528614 | H8: =4*$E4-5*$E8 -> 207.4842416 | I8: =(6/5)*E8 -> 3987.616038 | J8: -16.829287 | K8: =5*$E5-6*$E8 -> -192.8786229
A9: G | B9: 7 | C9: 3135.963488 | D9: =gee -> 5.5 | E9: 3145.94205 | F9: 3932.427562 | G9: =1200*(LOG(E5/F9)/LOG(octave)) -> 7.298286135 | H9: =4*E5-5*E9 -> 66.45100651 | I9: 3775.130459 | J9: -16.941287 | K9: -183.8101058 | O9: =(4/3)*cfund -> 4194.589399 | P9: =1200*(LOG($E4/O9)/LOG(octave)) -> 4.554000865 | Q9: =3*$E4-4*$E9 -> 33.14510226
A10: F# | B10: 7 | C10: 2959.955382 | D10: =fsharp -> -3.631 | E10: 2953.753831 | F10: 3692.192289 | G10: 21.51728614 | H10: 184.7045964 | I10: 3544.504598 | J10: -12.010287 | K10: -122.522988 | O10: 3938.338442 | P10: 4.698000865 | Q10: =3*$E5-4*$E10 -> 32.10561521
A11: F | B11: 7 | C11: 2793.825851 | D11: =eff -> 6.1 | E11: 2803.687255 | F11: 3504.609069 | G11: 7.586286135 | H11: 61.56372576 | I11: 3364.424706 | J11: -21.441287 | K11: -207.0567037 | L11: =(3/2)*E11 -> 4205.530882 | M11: =1200*(LOG($E4/L11)/LOG(octave)) -> 0.04399913461 | N11: =2*$E4-3*$E11 -> 0.2137689828 | O11: 3738.249673 | P11: 0.05500086539 | Q11: 0.3562953835
A12: E | B12: 7 | C12: 2637.020455 | D12: =eee -> -2.843 | E12: 2632.693544 | F12: 3290.86693 | G12: 16.82928614 | H12: 128.5857421 | I12: 3159.232252 | J12: -7.298287001 | K12: -66.45101441 | L12: =(3/2)*E12 -> 3949.040315 | M12: -8.653872185e-07 | N12: =2*$E5-3*$E12 -> -3.9479919e-06 | O12: 3510.258058 | P12: 4.798000865 | Q12: 29.22582537
A13: D# | B13: 7 | C13: 2489.01587 | D13: =dsharp -> 2.2 | E13: 2492.180847 | F13: 3115.226058 | G13: 16.98628614 | H13: 122.863965 | I13: 2990.617016 | J13: -21.472287 | K13: -184.315923 | L13: 3738.27127 | M13: 0.04499913461 | N13: =2*$E6-3*$E13 -> 0.1943367027 | O13: 3322.907795 | P13: 0.05500086539 | Q13: 0.3167088372 | R13: =(5/3)*E13 -> 4153.634744 | S13: =1200*(LOG($E4/R13)/LOG(octave)) -> 21.540287 | T13: =3*$E4-5*$E13 -> 156.0090673
A14: D | B14: 7 | C14: 2349.318143 | D14: =dee -> 2.8 | E14: 2353.120872 | F14: 2941.40109 | G14: 7.255286135 | H14: 49.41096577 | I14: 2823.745046 | J14: -12.341287 | K14: -100.2889572 | L14: 3529.681308 | M14: -4.755000865 | N14: -19.36261574 | O14: 3137.494496 | P14: 4.655000865 | Q14: 25.34266088 | R14: =(5/3)*E14 -> 3921.86812 | S14: 11.953287 | T14: =3*$E5-5*$E14 -> 81.51658098
A15: C# | B15: 7 | C15: 2217.461048 | D15: =csharp -> -1.676 | E15: 2215.315372 | F15: 2769.144215 | G15: 21.46228614 | H15: 138.1721574 | I15: 2658.378447 | J15: -16.808287 | K15: -128.4245161 | L15: 3322.973059 | M15: 0.02099913461 | N15: 0.08061299604 | O15: 2953.75383 | P15: 8.653879869e-07 | Q15: 4.429457476e-06 | R15: 3692.192287 | S15: 21.517287 | T15: 138.5284528
A16: C | B16: 7 | C16: 2093.004522 | D16: =D4 -> 8.099 | E16: 2102.818883 | F16: 2628.523604 | G16: 2.744286135 | H16: 16.67975772 | I16: 2523.38266 | J16: -21.540287 | K16: -156.0090673 | L16: 3154.228325 | M16: -4.554000865 | N16: -16.57255113 | O16: 2803.758511 | P16: -0.04399913461 | Q16: -0.2137689828 | R16: 3504.698139 | S16: 7.542287001 | T16: 45.90558309
A17: B | B17: 6 | C17: 1975.533205 | D17: =D5 -> -0.888 | E17: 1974.520157 | F17: 2468.150196 | G17: 16.77428614 | H17: 96.12260264 | I17: 2369.424188 | J17: -11.953287 | K17: -81.51658098 | L17: 2961.780235 | M17: -4.698000865 | N17: -16.05280761 | O17: 2632.693542 | P17: 8.653883713e-07 | Q17: 3.947997357e-06 | R17: 3290.866928 | S17: 16.829287 | T17: 96.43931147
A18: A# | B18: 6 | C18: 1864.655046 | D18: 4.2 | E18: 1869.184219 | F18: 2336.480274 | G18: 12.28628614 | H18: 66.562392 | I18: 2243.021063 | J18: -21.517287 | K18: -138.5284528 | L18: 2803.776329 | M18: -0.05500086539 | N18: -0.1781476917 | O18: 2492.245626 | P18: -0.04499913461 | Q18: -0.1943367027 | R18: 3115.307032 | S18: 16.941287 | T18: 91.90505288
A19: A | B19: 6 | C19: 1760 | D19: 0 | E19: 1760 | F19: 2200 | G19: 12.01028614 | H19: 61.26148957 | I19: 2112 | J19: -7.542287001 | K19: -45.90558309 | L19: 2640 | M19: -4.798000865 | N19: -14.61291268 | O19: 2346.666667 | P19: 4.755000865 | Q19: 19.36261574 | R19: 2933.333333 | S19: 12.010287 | T19: 61.261494
A20: G# | B20: 6 | C20: 1661.21879 | D20: 0.3 | E20: 1661.506683 | F20: 2076.883353 | G20: 21.48528614 | H20: 103.7421208 | I20: 1993.808019 | J20: -16.829287 | K20: -96.43931147 | L20: 2492.260024 | M20: -0.05500086539 | N20: -0.1583544186 | O20: 2215.342243 | P20: -0.02099913461 | Q20: -0.08061299604 | R20: 2769.177804 | S20: 21.441287 | T20: 103.5283518
A21: G | B21: 6 | C21: 1567.981744 | D21: 5.5 | E21: 1572.971025 | F21: 1966.213781 | G21: 7.298286135 | H21: 33.22550325 | I21: 1887.56523 | J21: -16.941287 | K21: -91.90505288 | L21: 2359.456537 | M21: -4.655000865 | N21: -12.67133044 | O21: 2097.2947 | P21: 4.554000865 | Q21: 16.57255113 | R21: 2621.618375 | S21: 7.298287001 | T21: 33.2255072
A22: F# | B22: 6 | C22: 1479.977691 | D22: -3.631 | E22: 1476.876916 | F22: 1846.096145 | G22: 21.51728614 | H22: 92.35229819 | I22: 1772.252299 | J22: -12.010287 | K22: -61.261494 | L22: 2215.315373 | M22: -8.653866419e-07 | N22: -2.21472601e-06 | O22: 1969.169221 | P22: 4.698000865 | Q22: 16.05280761 | R22: 2461.461526 | S22: 21.472287 | T22: 92.15796148
A23: F | B23: 6 | C23: 1396.912926 | D23: 6.1 | E23: 1401.843627 | F23: 1752.304534 | G23: 7.586286135 | H23: 30.78186288 | I23: 1682.212353 | J23: -21.441287 | K23: -103.5283518 | L23: 2102.765441 | M23: 0.04399913461 | N23: 0.1068844914 | O23: 1869.124837 | P23: 0.05500086539 | Q23: 0.1781476917 | R23: 2336.406046 | S23: 12.341287 | T23: 50.14447862
A24: E | B24: 6 | C24: 1318.510228 | D24: -2.843 | E24: 1316.346772 | F24: 1645.433465 | G24: 16.82928614 | H24: 64.29287103 | I24: 1579.616126 | J24: -7.298287001 | K24: -33.2255072 | L24: 1974.520158 | M24: -8.653876029e-07 | N24: -1.973996859e-06 | O24: 1755.129029 | P24: 4.798000865 | Q24: 14.61291268 | R24: 2193.911286 | S24: 16.808287 | T24: 64.21225803
A25: D# | B25: 6 | C25: 1244.507935 | D25: 2.2 | E25: 1246.090423 | F25: 1557.613029 | G25: 16.98628614 | H25: 61.4319825 | I25: 1495.308508 | J25: -21.472287 | K25: -92.15796148 | L25: 1869.135635 | M25: 0.04499913461 | N25: 0.09716835134 | O25: 1661.453898 | P25: 0.05500086539 | Q25: 0.1583544186 | R25: 2076.817372 | S25: 21.540287 | T25: 78.00453363
A26: D | B26: 6 | C26: 1174.659072 | D26: 2.8 | E26: 1176.560436 | F26: 1470.700545 | G26: 7.255286135 | H26: 24.70548288 | I26: 1411.872523 | J26: -12.341287 | K26: -50.14447862 | L26: 1764.840654 | M26: -4.755000865 | N26: -9.68130787 | O26: 1568.747248 | P26: 4.655000865 | Q26: 12.67133044 | R26: 1960.93406 | S26: 11.953287 | T26: 40.75829049
A27: C# | B27: 6 | C27: 1108.730524 | D27: -1.676 | E27: 1107.657686 | F27: 1384.572108 | G27: 21.46228614 | H27: 69.08607872 | I27: 1329.189223 | J27: -16.808287 | K27: -64.21225803 | L27: 1661.486529 | M27: 0.02099913461 | N27: 0.04030649802 | O27: 1476.876915 | P27: 8.653876025e-07 | Q27: 2.214727829e-06 | R27: 1846.096144 | S27: 21.517287 | T27: 69.26422641
A28: C | B28: 6 | C28: 1046.502261 | D28: 8.099 | E28: 1051.409442 | F28: 1314.261802 | G28: 2.744286135 | H28: 8.339878861 | I28: 1261.69133 | J28: -21.540287 | K28: -78.00453363 | L28: 1577.114163 | M28: -4.554000865 | N28: -8.286275564 | O28: 1401.879256 | P28: -0.04399913461 | Q28: -0.1068844914 | R28: 1752.349069 | S28: 7.542287001 | T28: 22.95279154
A29: B | B29: 5 | C29: 987.7666025 | D29: -0.888 | E29: 987.2600784 | F29: 1234.075098 | G29: 16.77428614 | H29: 48.06130132 | I29: 1184.712094 | J29: -11.953287 | K29: -40.75829049 | L29: 1480.890118 | M29: -4.698000865 | N29: -8.026403803 | O29: 1316.346771 | P29: 8.653883713e-07 | Q29: 1.973997769e-06 | R29: 1645.433464 | S29: 16.829287 | T29: 48.21965574
A30: A# | B30: 5 | C30: 932.327523 | D30: 4.2 | E30: 934.5921096 | F30: 1168.240137 | G30: 12.28628614 | H30: 33.281196 | I30: 1121.510531 | J30: -21.517287 | K30: -69.26422641 | L30: 1401.888164 | M30: -0.05500086539 | N30: -0.08907384587 | O30: 1246.122813 | P30: -0.04499913461 | Q30: -0.09716835134 | R30: 1557.653516 | S30: 16.941287 | T30: 45.95252644
A31: A | B31: 5 | C31: 880 | D31: 0 | E31: 880 | F31: 1100 | G31: 12.01028614 | H31: 30.63074478 | I31: 1056 | J31: -7.542287001 | K31: -22.95279154 | L31: 1320 | M31: -4.798000865 | N31: -7.306456341 | O31: 1173.333333 | P31: 4.755000865 | Q31: 9.68130787 | R31: 1466.666667 | S31: 12.010287 | T31: 30.630747
A32: G# | B32: 5 | C32: 830.6093952 | D32: 0.3 | E32: 830.7533413 | F32: 1038.441677 | G32: 21.48528614 | H32: 51.87106041 | I32: 996.9040095 | J32: -16.829287 | K32: -48.21965574 | L32: 1246.130012 | M32: -0.05500086539 | N32: -0.07917720931 | O32: 1107.671122 | P32: -0.02099913461 | Q32: -0.04030649802 | R32: 1384.588902 | S32: 21.441287 | T32: 51.76417592
A33: G | B33: 5 | C33: 783.990872 | D33: 5.5 | E33: 786.4855124 | F33: 983.1068905 | G33: 7.298286135 | H33: 16.61275163 | I33: 943.7826149 | J33: -16.941287 | K33: -45.95252644 | L33: 1179.728269 | M33: -4.655000865 | N33: -6.335665219 | O33: 1048.64735 | P33: 4.554000865 | Q33: 8.286275564 | R33: 1310.809187 | S33: 7.298287001 | T33: 16.6127536
A34: F# | B34: 5 | C34: 739.9888454 | D34: -3.631 | E34: 738.4384578 | F34: 923.0480723 | G34: 21.51728614 | H34: 46.17614909 | I34: 886.1261494 | J34: -12.010287 | K34: -30.630747 | L34: 1107.657687 | M34: -8.653870263e-07 | N34: -1.10736346e-06 | O34: 984.5846104 | P34: 4.698000865 | Q34: 8.026403803 | R34: 1230.730763 | S34: 21.472287 | T34: 46.07898074
A35: F | B35: 5 | C35: 698.4564629 | D35: 6.1 | E35: 700.9218137 | F35: 876.1522671 | G35: 7.586286135 | H35: 15.39093144 | I35: 841.1061765 | J35: -21.441287 | K35: -51.76417592 | L35: 1051.382721 | M35: 0.04399913461 | N35: 0.05344224569 | O35: 934.5624183 | P35: 0.05500086539 | Q35: 0.08907384587 | R35: 1168.203023 | S35: 12.341287 | T35: 25.07223931
A36: E | B36: 5 | C36: 659.2551138 | D36: -2.843 | E36: =fundamental*(cent^offset) -> 658.1733859 | F36: 822.7167324 | G36: 16.82928614 | H36: 32.14643551 | I36: 789.8080631 | J36: -7.298287001 | K36: -16.6127536 | L36: 987.2600789 | M36: -8.653876029e-07 | N36: -9.869984297e-07 | O36: 877.5645146 | P36: 4.798000865 | Q36: 7.306456341 | R36: 1096.955643 | S36: 16.808287 | T36: 32.10612902
A37: D# | B37: 5 | C37: 622.2539674 | D37: 2.2 | E37: 623.0452117 | F37: 778.8065146 | G37: 16.98628614 | H37: 30.71599125 | I37: 747.654254 | J37: -21.472287 | K37: -46.07898074 | L37: 934.5678175 | M37: 0.04499913461 | N37: 0.04858417567 | O37: 830.7269489 | P37: 0.05500086539 | Q37: 0.07917720931 | R37: 1038.408686 | S37: 21.540287 | T37: 39.00226682
A38: D | B38: 5 | C38: 587.3295358 | D38: 2.8 | E38: 588.280218 | F38: 735.3502725 | G38: 7.255286135 | H38: 12.35274144 | I38: 705.9362616 | J38: -12.341287 | K38: -25.07223931 | L38: 882.420327 | M38: -4.755000865 | N38: -4.840653935 | O38: 784.373624 | P38: 4.655000865 | Q38: 6.335665219 | R38: 980.46703 | S38: 11.953287 | T38: 20.37914524
A39: C# | B39: 5 | C39: 554.365262 | D39: -1.676 | E39: 553.8288431 | F39: 692.2860539 | G39: 21.46228614 | H39: 34.54303936 | I39: 664.5946117 | J39: =1200*(LOG($E36/I39)/LOG(octave)) -> -16.808287 | K39: -32.10612902 | L39: 830.7432646 | M39: 0.02099913461 | N39: 0.02015324901 | O39: 738.4384575 | P39: 8.653876025e-07 | Q39: 1.107363914e-06 | R39: 923.0480718 | S39: 21.517287 | T39: 34.6321132
A40: C | B40: 5 | C40: 523.2511306 | D40: 8.099 | E40: 525.7047208 | F40: 657.1309011 | G40: 2.744286135 | H40: 4.169939431 | I40: 630.845665 | J40: -21.540287 | K40: -39.00226682 | L40: 788.5570813 | M40: -4.554000865 | N40: -4.143137782 | O40: 700.9396278 | P40: -0.04399913461 | Q40: -0.05344224569 | R40: 876.1745347 | S40: 7.542287001 | T40: 11.47639577
A41: B | B41: 4 | C41: 493.8833013 | D41: -0.888 | E41: 493.6300392 | F41: 617.037549 | G41: =1200*(LOG(E37/F41)/LOG(octave)) -> 16.77428614 | H41: 24.03065066 | I41: 592.356047 | J41: -11.953287 | K41: -20.37914524 | L41: 740.4450588 | M41: -4.698000865 | N41: -4.013201901 | O41: =(4/3)*cfund -> 658.1733856 | P41: =1200*(LOG($E36/O41)/LOG(octave)) -> 8.653883713e-07 | Q41: 9.869991118e-07 | R41: 822.716732 | S41: 16.829287 | T41: 24.10982787
A42: A# | B42: 4 | C42: 466.1637615 | D42: 4.2 | E42: 467.2960548 | F42: 584.1200685 | G42: 12.28628614 | H42: 16.640598 | I42: 560.7552657 | J42: -21.517287 | K42: -34.6321132 | L42: 700.9440822 | M42: -0.05500086539 | N42: -0.04453692293 | O42: 623.0614064 | P42: -0.04499913461 | Q42: -0.04858417567 | R42: 778.826758 | S42: 16.941287 | T42: 22.97626322
A43: A | B43: 4 | C43: 440 | D43: 0 | E43: 440 | F43: 550 | G43: 12.01028614 | H43: 15.31537239 | I43: 528 | J43: -7.542287001 | K43: -11.47639577 | L43: 660 | M43: =1200*(LOG($E36/L43)/LOG(octave)) -> -4.798000865 | N43: -3.653228171 | O43: 586.6666667 | P43: 4.755000865 | Q43: 4.840653935 | R43: 733.3333333 | S43: 12.010287 | T43: 15.3153735
A44: G# | B44: 4 | C44: =C43/semitone -> 415.3046976 | D44: 0.3 | E44: 415.3766706 | F44: 519.2208383 | G44: 21.48528614 | H44: 25.9355302 | I44: 498.4520048 | J44: -16.829287 | K44: -24.10982787 | L44: 623.065006 | M44: -0.05500086539 | N44: -0.03958860465 | O44: 553.8355608 | P44: -0.02099913461 | Q44: -0.02015324901 | R44: 692.2944511 | S44: 21.441287 | T44: 25.88208796
A45: G | B45: 4 | C45: 391.995436 | D45: 5.5 | E45: 393.2427562 | F45: 491.5534452 | G45: 7.298286135 | H45: 8.306375814 | I45: 471.8913074 | J45: -16.941287 | K45: -22.97626322 | L45: 589.8641343 | M45: -4.655000865 | N45: -3.167832609 | O45: 524.3236749 | P45: 4.554000865 | Q45: 4.143137782 | R45: 655.4045936 | S45: =1200*(LOG($E36/R45)/LOG(octave)) -> 7.298287001 | T45: 8.306376801
A46: F# | B46: 4 | C46: 369.9944227 | D46: -3.631 | E46: 369.2192289 | F46: 461.5240361 | G46: 21.51728614 | H46: 23.08807455 | I46: 443.0630747 | J46: -12.010287 | K46: -15.3153735 | L46: 553.8288434 | M46: -8.653866419e-07 | N46: -5.536815024e-07 | O46: 492.2923052 | P46: 4.698000865 | Q46: 4.013201901 | R46: 615.3653815 | S46: 21.472287 | T46: 23.03949037
A47: F | B47: 4 | C47: 349.2282314 | D47: 6.1 | E47: 350.4609069 | F47: 438.0761336 | G47: 7.586286135 | H47: 7.695465719 | I47: 420.5530882 | J47: -21.441287 | K47: -25.88208796 | L47: 525.6913603 | M47: 0.04399913461 | N47: 0.02672112285 | O47: 467.2812091 | P47: 0.05500086539 | Q47: 0.04453692293 | R47: 584.1015114 | S47: 12.341287 | T47: 12.53611965
A48: E | B48: 4 | C48: 329.6275569 | D48: -2.843 | E48: 329.086693 | F48: 411.3583662 | G48: 16.82928614 | H48: 16.07321776 | I48: 394.9040315 | J48: -7.298287001 | K48: -8.306376801 | L48: 493.6300394 | M48: -8.653874107e-07 | N48: -4.934991011e-07 | O48: 438.7822573 | P48: 4.798000865 | Q48: 3.653228171 | R48: 548.4778216 | S48: 16.808287 | T48: 16.05306451
A49: D# | B49: 4 | C49: 311.1269837 | D49: 2.2 | E49: 311.5226058 | F49: 389.4032573 | G49: 16.98628614 | H49: 15.35799563 | I49: 373.827127 | J49: -21.472287 | K49: -23.03949037 | L49: 467.2839087 | M49: 0.04499913461 | N49: 0.02429208783 | O49: 415.3634744 | P49: 0.05500086539 | Q49: 0.03958860465 | R49: 519.204343 | S49: 21.540287 | T49: 19.50113341
A50: D | B50: 4 | C50: 293.6647679 | D50: 2.8 | E50: 294.140109 | F50: 367.6751362 | G50: 7.255286135 | H50: 6.176370721 | I50: 352.9681308 | J50: -12.341287 | K50: -12.53611965 | L50: 441.2101635 | M50: -4.755000865 | N50: -2.420326967 | O50: 392.186812 | P50: 4.655000865 | Q50: 3.167832609 | R50: 490.233515 | S50: 11.953287 | T50: 10.18957262
A51: C# | B51: 4 | C51: 277.182631 | D51: -1.676 | E51: 276.9144215 | F51: 346.1430269 | G51: 21.46228614 | H51: 17.27151968 | I51: 332.2973059 | J51: -16.808287 | K51: -16.05306451 | L51: 415.3716323 | M51: 0.02099913461 | N51: 0.01007662451 | O51: 369.2192287 | P51: 8.653879869e-07 | Q51: 5.536821845e-07 | R51: 461.5240359 | S51: 21.517287 | T51: 17.3160566
A52: C | B52: 4 | C52: 261.6255653 | D52: 8.099 | E52: 262.8523604 | F52: 328.5654505 | G52: 2.744286135 | H52: 2.084969715 | I52: 315.4228325 | J52: -21.540287 | K52: -19.50113341 | L52: 394.2785406 | M52: -4.554000865 | N52: -2.071568891 | O52: 350.4698139 | P52: -0.04399913461 | Q52: -0.02672112285 | R52: 438.0872674 | S52: 7.542287001 | T52: 5.738197886
A53: B | B53: 3 | C53: 246.9416506 | D53: -0.888 | E53: 246.8150196 | F53: 308.5187745 | G53: 16.77428614 | H53: 12.01532533 | I53: 296.1780235 | J53: -11.953287 | K53: -10.18957262 | L53: 370.2225294 | M53: -4.698000865 | N53: -2.006600951 | O53: 329.0866928 | P53: 8.653883713e-07 | Q53: 4.934996696e-07 | R53: =(5/3)*E53 -> 411.358366 | S53: 16.829287 | T53: =3*$E44-5*$E53 -> 12.05491393
A54: A# | B54: 3 | C54: 233.0818808 | D54: 4.2 | E54: 233.6480274 | F54: 292.0600342 | G54: 12.28628614 | H54: 8.320299 | I54: 280.3776329 | J54: -21.517287 | K54: -17.3160566 | L54: 350.4720411 | M54: -0.05500086539 | N54: -0.02226846147 | O54: 311.5307032 | P54: -0.04499913461 | Q54: -0.02429208783 | R54: 389.413379 | S54: 16.941287 | T54: 11.48813161
A55: A | B55: 3 | C55: 220 | D55: 0 | E55: 220 | F55: 275 | G55: 12.01028614 | H55: 7.657686196 | I55: 264 | J55: -7.542287001 | K55: -5.738197886 | L55: 330 | M55: -4.798000865 | N55: -1.826614085 | O55: 293.3333333 | P55: 4.755000865 | Q55: 2.420326967 | R55: 366.6666667 | S55: 12.010287 | T55: 7.65768675
A56: G# | B56: 3 | C56: 207.6523488 | D56: 0.3 | E56: 207.6883353 | F56: 259.6104191 | G56: 21.48528614 | H56: 12.9677651 | I56: 249.2260024 | J56: -16.829287 | K56: -12.05491393 | L56: 311.532503 | M56: -0.05500086539 | N56: =2*$E49-3*$E56 -> -0.01979430233 | O56: 276.9177804 | P56: -0.02099913461 | Q56: -0.0100766245 | R56: 346.1472255 | S56: 21.441287 | T56: 12.94104398
A57: G | B57: 3 | C57: 195.997718 | D57: 5.5 | E57: 196.6213781 | F57: 245.7767226 | G57: 7.298286135 | H57: 4.153187907 | I57: 235.9456537 | J57: -16.941287 | K57: -11.48813161 | L57: 294.9320671 | M57: -4.655000865 | N57: -1.583916305 | O57: 262.1618375 | P57: 4.554000865 | Q57: 2.071568891 | R57: 327.7022968 | S57: 7.298287001 | T57: 4.1531884
A58: F# | B58: 3 | C58: 184.9972114 | D58: -3.631 | E58: 184.6096145 | F58: 230.7620181 | G58: 21.51728614 | H58: 11.54403727 | I58: 221.5315373 | J58: -12.010287 | K58: =5*$E55-6*$E58 -> -7.65768675 | L58: 276.9144217 | M58: -8.653866419e-07 | N58: -2.768407512e-07 | O58: 246.1461526 | P58: 4.698000865 | Q58: 2.006600951 | R58: 307.6826908 | S58: 21.472287 | T58: 11.51974519
A59: F | B59: 3 | C59: 174.6141157 | D59: 6.1 | E59: 175.2304534 | F59: 219.0380668 | G59: 7.586286135 | H59: =4*E55-5*E59 -> 3.84773286 | I59: 210.2765441 | J59: -21.441287 | K59: -12.94104398 | L59: 262.8456801 | M59: 0.04399913461 | N59: 0.01336056142 | O59: 233.6406046 | P59: 0.05500086539 | Q59: 0.02226846147 | R59: 292.0507557 | S59: 12.341287 | T59: 6.268059827
A60: E | B60: 3 | C60: 164.8137785 | D60: -2.843 | E60: 164.5433465 | F60: 205.6791831 | G60: 16.82928614 | H60: 8.036608878 | I60: 197.4520158 | J60: -7.298287001 | K60: -4.1531884 | L60: 246.8150197 | M60: -8.653872185e-07 | N60: -2.467494937e-07 | O60: 219.3911286 | P60: 4.798000865 | Q60: =3*$E55-4*$E60 -> 1.826614085 | R60: 274.2389108 | S60: 16.808287 | T60: 8.026532254
A61: D# | B61: 3 | C61: 155.5634919 | D61: 2.2 | E61: 155.7613029 | F61: 194.7016286 | G61: 16.98628614 | H61: 7.678997813 | I61: 186.9135635 | J61: -21.472287 | K61: -11.51974519 | L61: 233.6419544 | M61: 0.04499913461 | N61: 0.01214604392 | O61: 207.6817372 | P61: 0.05500086539 | Q61: 0.01979430233 | R61: 259.6021715 | S61: 21.540287 | T61: 9.750566704
A62: D | B62: 3 | C62: 146.832384 | D62: 2.8 | E62: 147.0700545 | F62: 183.8375681 | G62: 7.255286135 | H62: 3.08818536 | I62: 176.4840654 | J62: -12.341287 | K62: -6.268059827 | L62: 220.6050817 | M62: -4.755000865 | N62: -1.210163484 | O62: 196.093406 | P62: 4.655000865 | Q62: 1.583916305 | R62: 245.1167575 | S62: 11.953287 | T62: 5.094786311
A63: C# | B63: 3 | C63: 138.5913155 | D63: -1.676 | E63: 138.4572108 | F63: 173.0715135 | G63: 21.46228614 | H63: 8.63575984 | I63: 166.1486529 | J63: -16.808287 | K63: -8.026532254 | L63: 207.6858162 | M63: 0.02099913461 | N63: 0.005038312253 | O63: 184.6096144 | P63: 8.653876025e-07 | Q63: 2.768409786e-07 | R63: 230.762018 | S63: 21.517287 | T63: 8.658028301
A64: C | B64: 3 | C64: 130.8127827 | D64: 8.099 | E64: 131.4261802 | F64: 164.2827253 | G64: 2.744286135 | H64: 1.042484858 | I64: 157.7114163 | J64: -21.540287 | K64: -9.750566704 | L64: 197.1392703 | M64: -4.554000865 | N64: -1.035784446 | O64: 175.2349069 | P64: -0.04399913461 | Q64: -0.01336056142 | R64: 219.0436337 | S64: 7.542287001 | T64: 2.869098943
A65: B | B65: 2 | C65: 123.4708253 | D65: -0.888 | E65: 123.4075098 | F65: 154.2593872 | G65: 16.77428614 | H65: 6.007662665 | I65: 148.0890118 | J65: -11.953287 | K65: -5.094786311 | L65: 185.1112647 | M65: -4.698000865 | N65: -1.003300475 | O65: 164.5433464 | P65: 8.653883713e-07 | Q65: 2.467497211e-07 | R65: =(5/3)*E65 -> 205.679183 | S65: 16.829287 | T65: =3*$E56-5*$E65 -> 6.027456967
A66: A# | B66: 2 | C66: 116.5409404 | D66: 4.2 | E66: 116.8240137 | F66: 146.0300171 | G66: 12.28628614 | H66: 4.1601495 | I66: 140.1888164 | J66: -21.517287 | K66: -8.658028301 | L66: 175.2360205 | M66: -0.05500086539 | N66: -0.01113423073 | O66: 155.7653516 | P66: -0.04499913461 | Q66: -0.01214604392 | R66: 194.7066895 | S66: 16.941287 | T66: 5.744065805
A67: A | B67: 2 | C67: 110 | D67: 0 | E67: 110 | F67: 137.5 | G67: 12.01028614 | H67: 3.828843098 | I67: 132 | J67: -7.542287001 | K67: -2.869098943 | L67: 165 | M67: -4.798000865 | N67: -0.9133070427 | O67: 146.6666667 | P67: 4.755000865 | Q67: 1.210163484 | R67: 183.3333333 | S67: 12.010287 | T67: 3.828843375
A68: G# | B68: 2 | C68: 103.8261744 | D68: 0.3 | E68: =fundamental*(cent^offset) -> 103.8441677 | F68: 129.8052096 | G68: 21.48528614 | H68: 6.483882551 | I68: 124.6130012 | J68: -16.829287 | K68: -6.027456967 | L68: 155.7662515 | M68: -0.05500086539 | N68: -0.009897151163 | O68: 138.4588902 | P68: -0.02099913461 | Q68: -0.005038312252 | R68: 173.0736128 | S68: 21.441287 | T68: 6.470521989
A69: G | B69: 2 | C69: 97.998859 | D69: 5.5 | E69: 98.31068905 | F69: 122.8883613 | G69: 7.298286135 | H69: 2.076593953 | I69: 117.9728269 | J69: -16.941287 | K69: -5.744065805 | L69: 147.4660336 | M69: -4.655000865 | N69: -0.7919581524 | O69: 131.0809187 | P69: 4.554000865 | Q69: 1.035784446 | R69: 163.8511484 | S69: 7.298287001 | T69: 2.0765942
A70: F# | B70: 2 | C70: 92.49860568 | D70: -3.631 | E70: 92.30480723 | F70: 115.381009 | G70: 21.51728614 | H70: 5.772018637 | I70: 110.7657687 | J70: -12.010287 | K70: -3.828843375 | L70: 138.4572108 | M70: -8.653864497e-07 | N70: -1.384203188e-07 | O70: 123.0730763 | P70: 4.698000865 | Q70: 1.003300475 | R70: 153.8413454 | S70: 21.472287 | T70: 5.759872593
A71: F | B71: 2 | C71: 87.30705786 | D71: 6.1 | E71: 87.61522671 | F71: 109.5190334 | G71: 7.586286135 | H71: 1.92386643 | I71: 105.1382721 | J71: =1200*(LOG($E68/I71)/LOG(octave)) -> -21.441287 | K71: -6.470521989 | L71: 131.4228401 | M71: 0.04399913461 | N71: 0.006680280712 | O71: 116.8203023 | P71: 0.05500086539 | Q71: 0.01113423073 | R71: 146.0253779 | S71: 12.341287 | T71: 3.134029914
A72: E | B72: 2 | C72: 82.40688923 | D72: -2.843 | E72: 82.27167324 | F72: =E72*1.25 -> 102.8395915 | G72: 16.82928614 | H72: 4.018304439 | I72: =(6/5)*E72 -> 98.72600789 | J72: -7.298287001 | K72: =5*$E69-6*$E72 -> -2.0765942 | L72: 123.4075099 | M72: -8.653868341e-07 | N72: -1.2337469e-07 | O72: 109.6955643 | P72: 4.798000865 | Q72: 0.9133070427 | R72: =(5/3)*E72 -> 137.1194554 | S72: 16.808287 | T72: 4.013266127
A73: D# | B73: 2 | C73: 77.78174593 | D73: 2.2 | E73: 77.88065146 | F73: 97.35081432 | G73: =1200*(LOG(E69/F73)/LOG(octave)) -> 16.98628614 | H73: =4*E69-5*E73 -> 3.839498907 | I73: 93.45678175 | J73: -21.472287 | K73: -5.759872593 | L73: 116.8209772 | M73: 0.04499913461 | N73: 0.006073021959 | O73: =(4/3)*cfund -> 103.8408686 | P73: =1200*(LOG($E68/O73)/LOG(octave)) -> 0.05500086539 | Q73: 0.009897151163 | R73: 129.8010858 | S73: 21.540287 | T73: 4.875283352
A74: D | B74: 2 | C74: 73.41619198 | D74: 2.8 | E74: 73.53502725 | F74: 91.91878406 | G74: 7.255286135 | H74: 1.54409268 | I74: 88.2420327 | J74: -12.341287 | K74: -3.134029914 | L74: 110.3025409 | M74: -4.755000865 | N74: -0.6050817418 | O74: 98.046703 | P74: 4.655000865 | Q74: =3*$E69-4*$E74 -> 0.7919581524 | R74: 122.5583787 | S74: 11.953287 | T74: 2.547393156
A75: C# | B75: 2 | C75: 69.29565774 | D75: -1.676 | E75: 69.22860539 | F75: 86.53575673 | G75: 21.46228614 | H75: 4.31787992 | I75: 83.07432646 | J75: -16.808287 | K75: -4.013266127 | L75: 103.8429081 | M75: =1200*(LOG($E68/L75)/LOG(octave)) -> 0.02099913461 | N75: 0.002519156126 | O75: 92.30480718 | P75: 8.653879869e-07 | Q75: 1.384205461e-07 | R75: 115.381009 | S75: 21.517287 | T75: 4.329014151
A76: C | B76: 2 | C76: 65.40639133 | D76: 8.099 | E76: 65.71309011 | F76: 82.14136263 | G76: 2.744286135 | H76: 0.5212424288 | I76: 78.85570813 | J76: -21.540287 | K76: -4.875283352 | L76: =(3/2)*E76 -> 98.56963516 | M76: -4.554000865 | N76: =2*$E69-3*$E76 -> -0.5178922228 | O76: 87.61745347 | P76: -0.04399913461 | Q76: -0.006680280712 | R76: 109.5218168 | S76: 7.542287001 | T76: 1.434549472
A77: B | B77: 1 | C77: 61.73541266 | D77: -0.888 | E77: 61.7037549 | F77: 77.12969362 | G77: 16.77428614 | H77: 3.003831332 | I77: 74.04450588 | J77: -11.953287 | K77: -2.547393156 | L77: 92.55563235 | M77: -4.698000865 | N77: -0.5016502377 | O77: 82.2716732 | P77: 8.653883713e-07 | Q77: 1.23374889e-07 | R77: 102.8395915 | S77: =1200*(LOG($E68/R77)/LOG(octave)) -> 16.829287 | T77: 3.013728484
A78: A# | B78: 1 | C78: 58.27047019 | D78: 4.2 | E78: 58.41200685 | F78: 73.01500856 | G78: 12.28628614 | H78: 2.08007475 | I78: 70.09440822 | J78: -21.517287 | K78: -4.329014151 | L78: 87.61801027 | M78: -0.05500086539 | N78: -0.005567115367 | O78: 77.8826758 | P78: -0.04499913461 | Q78: -0.006073021959 | R78: 97.35334475 | S78: 16.941287 | T78: 2.872032902
A79: A | B79: 1 | C79: 55 | D79: 0 | E79: 55 | F79: 68.75 | G79: 12.01028614 | H79: 1.914421549 | I79: 66 | J79: -7.542287001 | K79: -1.434549472 | L79: 82.5 | M79: -4.798000865 | N79: -0.4566535213 | O79: 73.33333333 | P79: 4.755000865 | Q79: 0.6050817418 | R79: 91.66666667 | S79: 12.010287 | T79: 1.914421687
A80: G# | B80: 1 | C80: 51.9130872 | D80: 0.3 | E80: 51.92208383 | F80: 64.90260479 | G80: 21.48528614 | H80: 3.241941275 | I80: 62.3065006 | J80: -16.829287 | K80: -3.013728484 | L80: 77.88312574 | M80: -0.05500086539 | N80: -0.004948575582 | O80: 69.22944511 | P80: -0.02099913461 | Q80: -0.002519156126 | R80: 86.53680638 | S80: 21.441287 | T80: 3.235260995
A81: G | B81: 1 | C81: 48.9994295 | D81: =D69 -> 5.5 | E81: 49.15534452 | F81: 61.44418065 | G81: 7.298286135 | H81: 1.038296977 | I81: 58.98641343 | J81: -16.941287 | K81: -2.872032902 | L81: 73.73301679 | M81: -4.655000865 | N81: -0.3959790762 | O81: 65.54045936 | P81: 4.554000865 | Q81: 0.5178922228 | R81: 81.92557421 | S81: 7.298287001 | T81: 1.0382971
A82: F# | B82: 1 | C82: 46.24930284 | D82: -3.631 | E82: 46.15240361 | F82: 57.69050452 | G82: 21.51728614 | H82: 2.886009318 | I82: 55.38288434 | J82: -12.010287 | K82: -1.914421687 | L82: 69.22860542 | M82: -8.653870263e-07 | N82: -6.921021622e-08 | O82: 61.53653815 | P82: 4.698000865 | Q82: 0.5016502377 | R82: 76.92067269 | S82: 21.472287 | T82: 2.879936296
A83: F | B83: 1 | C83: 43.65352893 | D83: 6.1 | E83: 43.80761336 | F83: 54.7595167 | G83: 7.586286135 | H83: 0.9619332149 | I83: 52.56913603 | J83: -21.441287 | K83: -3.235260995 | L83: 65.71142004 | M83: 0.04399913461 | N83: 0.003340140356 | O83: 58.41015114 | P83: 0.05500086539 | Q83: 0.005567115367 | R83: 73.01268893 | S83: 12.341287 | T83: 1.567014957
A84: E | B84: 1 | C84: 41.20344461 | D84: -2.843 | E84: 41.13583662 | F84: 51.41979577 | G84: 16.82928614 | H84: 2.00915222 | I84: 49.36300394 | J84: -7.298287001 | K84: -1.0382971 | L84: 61.70375493 | M84: -8.653876029e-07 | N84: -6.168740185e-08 | O84: 54.84778216 | P84: 4.798000865 | Q84: 0.4566535213 | R84: 68.5597277 | S84: 16.808287 | T84: 2.006633063
A85: D# | B85: 1 | C85: 38.89087297 | D85: 2.2 | E85: 38.94032573 | F85: 48.67540716 | G85: 16.98628614 | H85: 1.919749453 | I85: 46.72839087 | J85: -21.472287 | K85: -2.879936296 | L85: 58.41048859 | M85: 0.04499913461 | N85: 0.003036510979 | O85: 51.9204343 | P85: 0.05500086539 | Q85: 0.004948575582 | R85: 64.90054288 | S85: 21.540287 | T85: 2.437641676
A86: D | B86: 1 | C86: 36.70809599 | D86: 2.8 | E86: 36.76751362 | F86: 45.95939203 | G86: 7.255286135 | H86: 0.7720463401 | I86: 44.12101635 | J86: -12.341287 | K86: -1.567014957 | L86: 55.15127044 | M86: -4.755000865 | N86: -0.3025408709 | O86: 49.0233515 | P86: 4.655000865 | Q86: 0.3959790762 | R86: 61.27918937 | S86: 11.953287 | T86: 1.273696578
A87: C# | B87: 1 | C87: 34.64782887 | D87: -1.676 | E87: 34.61430269 | F87: 43.26787837 | G87: 21.46228614 | H87: 2.15893996 | I87: 41.53716323 | J87: -16.808287 | K87: -2.006633063 | L87: 51.92145404 | M87: 0.02099913461 | N87: 0.001259578063 | O87: 46.15240359 | P87: 8.653879869e-07 | Q87: 6.921027307e-08 | R87: 57.69050449 | S87: 21.517287 | T87: 2.164507075
A88: C | B88: 1 | C88: 32.70319566 | D88: 8.099 | E88: 32.85654505 | F88: 41.07068132 | G88: 2.744286135 | H88: 0.2606212144 | I88: 39.42785406 | J88: -21.540287 | K88: -2.437641676 | L88: 49.28481758 | M88: -4.554000865 | N88: -0.2589461114 | O88: 43.80872674 | P88: -0.04399913461 | Q88: -0.003340140356 | R88: 54.76090842 | S88: 7.542287001 | T88: 0.7172747358
A89: B | B89: 0 | C89: 30.86770633 | D89: -0.888 | E89: 30.85187745 | F89: 38.56484681 | G89: 16.77428614 | H89: 1.501915666 | I89: 37.02225294 | J89: -11.953287 | K89: -1.273696578 | L89: 46.27781617 | M89: -4.698000865 | N89: -0.2508251188 | O89: 41.1358366 | P89: 8.653883713e-07 | Q89: 6.16874587e-08 | R89: 51.41979575 | S89: 16.829287 | T89: 1.506864242
A90: A# | B90: 0 | C90: 29.13523509 | D90: 4.2 | E90: 29.20600342 | F90: 36.50750428 | G90: 12.28628614 | H90: 1.040037375 | I90: 35.04720411 | J90: -21.517287 | K90: -2.164507075 | L90: 43.80900514 | M90: -0.05500086539 | N90: -0.002783557683 | O90: 38.9413379 | P90: -0.04499913461 | Q90: -0.003036510979 | R90: 48.67667237 | S90: 16.941287 | T90: 1.436016451
A91: A | B91: 0 | C91: 27.5 | D91: 0 | E91: 27.5 | F91: 34.375 | G91: 12.01028614 | H91: =4*E87-5*E91 -> 0.9572107745 | I91: 33 | J91: -7.542287001 | K91: =5*$E88-6*$E91 -> -0.7172747358 | L91: 41.25 | M91: -4.798000865 | N91: -0.2283267607 | O91: 36.66666667 | P91: 4.755000865 | Q91: 0.3025408709 | R91: 45.83333333 | S91: 12.010287 | T91: 0.9572108437

Sheet Constants (hidden)
A1: Constants
C7: 1 | D7: 100 | E7: multiplier: | F7: =2^(1/12) -> 1.059463094 | G7: <--call this the "semitone"
C8: 1# | D8: =D7*semitone -> 105.9463094 | F8: by formula =2^(1/12)
C9: 2 | D9: 112.2462048
C10: 2# | D10: 118.9207115
C11: 3 | D11: 125.992105
C12: 4 | D12: 133.4839854
C13: 4# | D13: 141.4213562
C14: 5 | D14: 149.8307077
C17: continuing the series above…
C18: 5# | D18: =D14*semitone -> 158.7401052
C19: 6 | D19: =D18*semitone -> 168.1792831 | E19: octave: | F19: =D22/100 -> 2 | G19: <--call this the "octave"
C20: 6# | D20: =D19*semitone -> 178.1797436 | E20: So the cent multiplier is =octave^(1/1200)
C21: 7 | D21: =D20*semitone -> 188.7748625 | F21: =octave^(1/1200) -> 1.00057779 | G21: <--call this the "cent"
C22: 8 | D22: =D21*semitone -> 200
E23: Test the cent:
E24: From the 5 to the 5# is 100 cents, or =150.00*(cent^100)
F25: =D14*(cent^100) -> 158.7401052 | G25: <--check!
